[Event "XI Closed IM BCC 2021"]
[Site "Barcelona"]
[Date "2021.03.23"]
[Round "9.4"]
[White "Martin Gonzalez, Angel"]
[Black "Louis, Thibault"]
[Result "1/2-1/2"]
[ECO "B13"]
[WhiteElo "2272"]
[BlackElo "2244"]
[Annotator "ChessBase"]
[PlyCount "42"]
[EventDate "2021.03.15"]
[EventType "tourn"]
[EventCountry "ESP"]
[SourceTitle "playchess.com"]
[Source "ChessBase"]
[SourceQuality "1"]
[TimeControl "5400+30"]

1. e4 {[%emt 0:00:00]} c6 {[%emt 0:03:08]} 2. d4 {[%emt 0:00:00]} d5 {[%emt 0:00:06]} 3. exd5 {[%emt 0:00:19]} cxd5 {[%emt 0:01:14]} 4. c4 {[%emt 0:00:18]} Nf6 {[%emt 0:03:19]} 5. Nc3 {[%emt 0:00:16]} Nc6 {[%emt 0:02:50]} 6. Nf3 {[%emt 0:00:57]} g6 {[%emt 0:00:57]} 7. cxd5 {[%emt 0:08:21]} Nxd5 {[%emt 0:04:47]} 8. Qb3 {[%emt 0:04:11]} e6 {[%emt 0:00:54]} 9. Nxd5 {[%emt 0:14:20]} Qxd5 {[%emt 0:06:30]} 10. Qxd5 {[%emt 0:08:12]} Bb4+ {[%emt 0:01:51]} 11. Bd2 {[%emt 0:00:20]} exd5 {[%emt 0:01:25]} 12. Bb5 {[%emt 0:01:30]} Bd6 {[%emt 0:10:42]} 13. Bh6 {[%emt 0:09:54]} Bg4 {[%emt 0:06:41]} 14. Ne5 {[%emt 0:04:53]} Bxe5 {[%emt 0:19:34]} 15. dxe5 {[%emt 0:00:34]} a6 {[%emt 0:00:19]} 16. Ba4 {[%emt 0:19:10]} b5 {[%emt 0:05:00]} 17. Bb3 {[%emt 0:00:21]} Nxe5 {[%emt 0:08:04]} 18. Bxd5 {[%emt 0:11:28]} O-O-O {[%emt 0:00:21]} 19. Be4 {[%emt 0:04:31]} Nd3+ {[%emt 0:04:02]} 20. Bxd3 {[%emt 0:03:48]} Rxd3 {[%emt 0:00:22]} 21. O-O {[%emt 0:00:10]} Be6 {[%emt 0:01:06]} 1/2-1/2